fUST/lending_fUST_20250123
["ID","MTS","AMOUNT","RATE_DAILY","PERIOD"]
[350117361,1737637832776,-163.718324,0.00016935,2]
[350117363,1737637832786,-163.718324,0.00017808,2]
[350117365,1737637832796,-322.2590687,0.00018129,2]
[350117367,1737637832807,-779.85327298,0.000189,2]
[350117369,1737637832817,-276.595,0.00019,2]
[350117371,1737637832826,-3384.60719913,0.00019051,2]
[350117373,1737637832837,-177.58086248,0.00019077,2]
[350117375,1737637832848,-3000.0,0.000191,2]
[350117377,1737637832857,-300.0,0.000191,8]
[350117379,1737637832867,-300.0,0.00019109,2]
[350117382,1737637832878,-3000.0,0.0001911,2]
[350117383,1737637832888,-3000.0,0.0001912,2]
[350117385,1737637832898,-156.0613172,0.00019123,2]
[350117386,1737637832907,-153.0,0.00019123,2]
[350117389,1737637833025,-153.0,0.00019123,2]
[350117390,1737637833039,-153.0,0.00019123,2]
[350117391,1737637833049,-153.0,0.00019123,2]
[350117392,1737637833062,-848.69956843,0.0001913,2]
[350117399,1737637838567,-579.53143932,0.00018939,2]
[350117400,1737637838577,-2151.30043157,0.0001913,2]
[350117401,1737637838586,-3000.0,0.0001914,2]
[350117402,1737637838595,-1814.99693136,0.0001915,2]
[350117403,1737637838622,-2855.81053664,0.0001915,2]
[350117404,1737637838633,-151.0,0.00019166,2]
[350117405,1737637838642,-796.13,0.00019168,3]
[350117406,1737637838652,-3544.21198719,0.00019177,5]
[350117413,1737637840836,-322.7,0.00019177,5]
[350117414,1737637840850,-3276.69999998,0.00019177,5]
[350117415,1737637840862,-3302.47134826,0.00019177,5]
[350117416,1737637840874,-428.5613202,0.00019177,5]
[350117417,1737637840900,-4423.71326918,0.00019177,5]
[350117418,1737637840910,-1549.34252977,0.00019177,5]
[350117419,1737637840923,-7294.624864,0.00019177,2]
[350117420,1737637840934,-10426.41912482,0.00019177,2]
[350117421,1737637840943,-500.0,0.00019177,2]
[350117422,1737637840953,-315.0,0.00019177,2]
[350117424,1737637840962,-500.0,0.00019177,2]
[350117425,1737637840972,-500.0,0.00019177,2]
[350117426,1737637840982,-202.43951675,0.00019177,2]
[350117427,1737637840994,-297.56048325,0.00019177,2]
[350117429,1737637841003,-24.43951675,0.00019177,2]
[350117430,1737637841015,-475.56048325,0.00019177,2]
[350117431,1737637841025,-500.0,0.00019177,2]
[350117432,1737637841034,-500.0,0.00019177,2]
[350117433,1737637841044,-500.0,0.00019177,2]
[350117434,1737637841054,-62.49316209,0.00019177,2]
[350117437,1737637843709,-437.50683791,0.00019177,2]
[350117438,1737637843719,-641.56208133,0.00019177,2]
[350117439,1737637843728,-500.0,0.00019177,2]
[350117440,1737637843739,-500.0,0.00019177,2]
[350117441,1737637843748,-500.0,0.00019177,2]
[350117442,1737637843757,-500.0,0.00019177,2]
[350117443,1737637843766,-500.0,0.00019177,2]
[350117444,1737637843775,-500.0,0.00019177,2]
[350117445,1737637843784,-500.0,0.00019177,2]
[350117446,1737637843794,-500.0,0.00019177,2]
[350117447,1737637843803,-500.0,0.00019177,2]
[350117448,1737637843818,-500.0,0.00019177,2]
[350117449,1737637843827,-444.16684697,0.00019177,2]
[350117450,1737637843848,-500.0,0.00019177,2]
[350117451,1737637843859,-500.0,0.00019177,2]
[350117452,1737637843870,-176.77980324,0.00019177,2]
[350117453,1737637843885,-104.41019676,0.00019177,2]
[350117454,1737637843896,-167.18991251,0.00019177,2]
[350117455,1737637843907,-396.5374711,0.00019177,2]
[350117456,1737637843921,-103.4625289,0.00019177,2]
[350117457,1737637843931,-500.0,0.00019177,2]
[350117458,1737637843942,-314.92057112,0.00019177,2]
[350117459,1737637843952,-618.48633449,0.00019177,2]
[350117460,1737637843963,-500.0,0.00019177,2]
[350117461,1737637843975,-500.0,0.00019177,2]
[350117462,1737637843986,-500.0,0.00019177,2]
[350117463,1737637843997,-500.0,0.00019177,2]
[350117464,1737637844009,-500.0,0.00019177,2]
[350117465,1737637844020,-500.0,0.00019177,2]
[350117466,1737637844031,-32.46889625,0.00019177,2]
[350117467,1737637844045,-467.53110375,0.00019177,2]
[350117468,1737637844057,-500.0,0.00019177,2]
[350117469,1737637844073,-32.46889625,0.00019177,2]
[350117470,1737637844087,-467.53110375,0.00019177,2]
[350117471,1737637844097,-500.0,0.00019177,2]
[350117472,1737637844107,-500.0,0.00019177,2]
[350117473,1737637844121,-500.0,0.00019177,2]
[350117474,1737637844131,-500.0,0.00019177,2]
[350117475,1737637844140,-500.0,0.00019177,2]
[350117476,1737637844150,-500.0,0.00019178,2]
[350117477,1737637844160,-500.0,0.00019178,2]
[350117478,1737637844169,-500.0,0.00019178,2]
[350117479,1737637844179,-500.0,0.00019178,2]
[350117480,1737637844189,-117.96889625,0.00019178,2]
[350117481,1737637844202,-382.03110375,0.00019178,2]
[350117482,1737637844212,-323.92889625,0.00019178,2]
[350117483,1737637844224,-176.07110375,0.00019178,2]
[350117484,1737637844233,-500.0,0.00019178,2]
[350117485,1737637844243,-501.02754311,0.00019178,2]
[350117486,1737637844253,-501.02323808,0.00019178,2]
[350117487,1737637844262,-501.46727149,0.00019178,2]
[350117488,1737637844272,-500.0,0.00019178,2]
[350117490,1737637844283,-501.17067513,0.00019178,2]
[350117492,1737637844292,-503.73794478,0.00019178,2]
[350117493,1737637844301,-500.0,0.00019178,2]
[350117494,1737637844316,-502.11598371,0.00019178,2]
[350117495,1737637844327,-833.58,0.00019178,2]
[350117496,1737637844336,-500.0,0.00019178,2]
[350117497,1737637844346,-500.60832715,0.00019178,2]
[350117498,1737637844355,-259.91536768,0.00019178,2]
[350117499,1737637844364,-501.64834748,0.00019178,2]
[350117500,1737637844374,-500.0,0.00019178,2]
[350117501,1737637844384,-500.0,0.00019178,2]
[350117502,1737637844394,-500.60128621,0.00019178,2]
[350117503,1737637844403,-500.64592599,0.00019178,2]
[350117504,1737637844413,-500.0,0.00019178,2]
[350117505,1737637844422,-503.37195428,0.00019178,2]
[350117506,1737637844431,-500.84246319,0.00019178,2]
[350117507,1737637844441,-501.48454756,0.00019178,2]
[350117508,1737637844450,-500.0,0.00019178,2]
[350117509,1737637844459,-516.71282856,0.00019178,2]
[350117510,1737637844469,-500.0,0.00019178,2]
[350117511,1737637844479,-501.68749148,0.00019178,2]
[350117512,1737637844488,-500.0,0.00019178,2]
[350117513,1737637844498,-501.00388822,0.00019178,2]
[350117514,1737637844507,-202.61316505,0.00019178,2]
[350117610,1737638387609,252.470766,0.00013973,2]
[350117612,1737638659821,4534.63439602,0.00024,120]
[350117701,1737639032079,-500.0,0.0001663,2]
[350117703,1737639032089,-110.57,0.00017564,2]
[350117710,1737639032140,-59.48380414,0.00017564,2]
[350117712,1737639032150,-500.0,0.00017664,2]
[350117714,1737639032160,-163.718324,0.00017808,2]
[350117716,1737639032170,-2147.5795739,0.00018067,2]
[350117718,1737639032179,-495.35035004,0.00018978,2]
[350117720,1737639032188,-300.0,0.00018999,2]
[350117722,1737639032201,-380.999868,0.00019,2]
[350117724,1737639032210,-265.253,0.00019,2]
[350117726,1737639032220,-168.78531184,0.00019,4]
[350117728,1737639032229,-16646.17245878,0.00019,2]
[350117730,1737639032245,-3049.09357322,0.00019,2]
[350117732,1737639032254,-153.0,0.00019,2]
[350117735,1737639032264,-215.2923755,0.00019,2]
[350117736,1737639032273,-2990.83155185,0.00019072,2]
[350117739,1737639032286,-1643.71114581,0.00019072,2]
[350117741,1737639032311,-7309.12487732,0.00019072,2]
[350117743,1737639032321,-177.55106054,0.00019078,2]
[350117745,1737639032330,-590.54673012,0.00019177,2]
[350117747,1737639032340,-500.0,0.00019177,2]
[350117749,1737639032349,-515.72912015,0.00019177,2]
[350117751,1737639032359,-160.462983,0.00019177,2]
[350117753,1737639032369,-409.70261938,0.00019177,2]
[350117755,1737639032378,-167.18991251,0.00019177,2]
[350117757,1737639032387,-7155.44786199,0.00019178,5]
[350117788,1737639037939,-500.0,0.00016464,2]
[350117789,1737639037949,-3383.55267218,0.00019178,5]
[350117790,1737639037959,-2320.62047759,0.00019178,5]
[350117825,1737639043203,-741.99284069,0.00019178,5]
[350117826,1737639043213,-500.0,0.00019178,2]
[350117827,1737639043223,-500.0,0.00019178,2]
[350117828,1737639043233,-297.38683495,0.00019178,2]
[350117829,1737639043244,-500.87289436,0.00019178,2]
[350117830,1737639043255,-42.34388917,0.00019178,2]
[350117831,1737639043272,-459.28523376,0.00019178,2]
[350117832,1737639043282,-501.18530871,0.00019178,2]
[350117833,1737639043292,-501.04227712,0.00019178,2]
[350117834,1737639043301,-500.0,0.00019178,2]
[350117835,1737639043318,-500.8528102,0.00019178,2]
[350117836,1737639043327,-500.0,0.00019178,2]
[350117838,1737639043338,-500.0,0.00019178,2]
[350117840,1737639043348,-500.0,0.00019178,2]
[350117842,1737639043358,-500.0,0.00019178,2]
[350117843,1737639043368,-500.54045446,0.00019178,2]
[350117844,1737639043379,-500.0,0.00019178,2]
[350117845,1737639043389,-500.0,0.00019178,2]
[350117846,1737639043399,-500.48486868,0.00019178,2]
[350117847,1737639043410,-500.0,0.00019178,2]
[350117848,1737639043420,-500.0,0.00019178,2]
[350117849,1737639043429,-500.0,0.00019178,2]
[350117850,1737639043440,-503.15970803,0.00019178,2]
[350117851,1737639043449,-500.77400455,0.00019178,2]
[350117852,1737639043459,-500.52785161,0.00019178,2]
[350117853,1737639043468,-19459.96142375,0.00019178,2]
[350117854,1737639043478,-500.0,0.00019178,2]
[350117855,1737639043487,-500.0,0.00019178,2]
[350117856,1737639043497,-500.856799,0.00019178,2]
[350117857,1737639043506,-500.72339233,0.00019178,2]
[350117858,1737639043516,-500.0,0.00019178,2]
[350117859,1737639043526,-500.37111638,0.00019178,2]
[350117860,1737639043535,-500.0,0.00019178,2]
[350117861,1737639043545,-500.81589263,0.00019178,2]
[350117862,1737639043559,-502.6552796,0.00019178,2]
[350117863,1737639043568,-500.0,0.00019178,2]
[350117864,1737639043577,-500.0,0.00019178,2]
[350117865,1737639043587,-500.0,0.00019178,2]
[350117866,1737639043596,-500.0,0.00019178,2]
[350117867,1737639043605,-500.0,0.00019178,2]
[350117868,1737639043614,-500.54404709,0.00019178,2]
[350117869,1737639043624,-500.0,0.00019178,2]
[350117870,1737639043633,-500.0,0.00019178,2]
[350117871,1737639043643,-500.0,0.00019178,2]
[350117872,1737639043652,-502.01939081,0.00019178,2]
[350117873,1737639043661,-501.01117415,0.00019178,2]
[350117874,1737639043671,-503.91779333,0.00019178,2]
[350117875,1737639043680,-501.89335529,0.00019178,2]
[350117876,1737639043690,-500.0,0.00019178,2]
[350117877,1737639043699,-500.0,0.00019178,2]
[350117878,1737639043708,-500.0,0.00019178,2]
[350117879,1737639043717,-500.0,0.00019178,2]
[350117880,1737639043726,-191.55976062,0.00019178,2]
[350117881,1737639043737,-500.0,0.00019178,2]
[350117882,1737639043747,-506.80941076,0.00019178,2]
[350117883,1737639043756,-500.79692268,0.00019178,2]
[350117884,1737639043765,-500.0,0.00019178,2]
[350117885,1737639043775,-374.97276554,0.00019178,2]
[350117886,1737639043784,-473.10969426,0.00019178,2]
[350117887,1737639043792,-595.4,0.00019178,2]
[350117888,1737639043802,-168.52364762,0.00019178,2]
[350117889,1737639043814,-500.0,0.00019178,2]
[350117890,1737639043823,-500.86824252,0.00019178,2]
[350117891,1737639043832,-798.85,0.00019178,2]
[350117892,1737639043841,-3077.98,0.00019178,2]
[350117893,1737639043851,-500.0,0.00019178,2]
[350117894,1737639043860,-500.0,0.00019178,2]
[350117895,1737639043870,-409.19861755,0.00019178,2]
[350117896,1737639043879,-1321.82,0.00019178,2]
[350117897,1737639043889,-517.02,0.00019178,2]
[350117898,1737639043898,-500.0,0.00019178,2]
[350117899,1737639043907,-500.0,0.00019178,2]
[350117900,1737639043916,-2429.35,0.00019178,2]
[350117901,1737639043925,-500.0,0.00019178,2]
[350117902,1737639043934,-500.0,0.00019178,2]
[350117903,1737639043944,-2007.16,0.00019178,2]
[350117904,1737639043954,-4683.25,0.00019178,2]
[350117905,1737639043963,-592.98,0.00019178,2]
[350117906,1737639043975,-564.57,0.00019178,2]
[350117907,1737639043985,-500.0,0.00019178,2]
[350117908,1737639043999,-500.0,0.00019178,2]
[350117909,1737639044009,-833.19,0.00019178,2]
[350117910,1737639044018,-802.59,0.00019178,2]
[350117911,1737639044028,-500.0,0.00019178,2]
[350117912,1737639044038,-500.0,0.00019178,2]
[350117913,1737639044050,-500.0,0.00019178,2]
[350117914,1737639044061,-11119.95,0.00019178,2]
[350117915,1737639044070,-538.69,0.00019178,2]
[350117916,1737639044079,-500.0,0.00019178,2]
[350117917,1737639044089,-500.0,0.00019178,2]
[350117918,1737639044098,-500.0,0.00019178,2]
[350117919,1737639044107,-798.91,0.00019178,2]
[350117920,1737639044116,-2383.17,0.00019178,2]
[350117921,1737639044125,-500.0,0.00019178,2]
[350117922,1737639044134,-500.0,0.00019178,2]
[350117923,1737639044144,-500.0,0.00019178,2]
[350117924,1737639044153,-500.0,0.00019178,2]
[350117925,1737639044162,-500.0,0.00019178,2]
[350117926,1737639044275,-873.27,0.00019178,2]
[350117927,1737639044291,-500.0,0.00019178,2]
[350117928,1737639044301,-500.0,0.00019178,2]
[350117929,1737639044314,-589.29,0.00019178,2]
[350117930,1737639044324,-500.0,0.00019178,2]
[350117931,1737639044333,-500.0,0.00019178,2]
[350117932,1737639044342,-1839.47,0.00019178,2]
[350117933,1737639044352,-500.0,0.00019178,2]
[350117934,1737639044362,-154.97,0.00019178,2]
[350117935,1737639044371,-169.7644705,0.00019178,2]
[350117936,1737639044381,-1340.84,0.000192,2]
[350117937,1737639044390,-500.0,0.00019315,3]
[350117938,1737639044399,-500.0,0.00019315,3]
[350117939,1737639044409,-500.0,0.00019315,3]
[350117940,1737639044419,-500.0,0.00019315,3]
[350117941,1737639044430,-500.0,0.00019315,3]
[350117942,1737639044439,-798.85,0.00019315,2]
[350117943,1737639044450,-3077.98,0.00019315,3]
[350117944,1737639044460,-500.0,0.00019315,2]
[350117945,1737639044469,-1321.82,0.00019315,3]
[350117946,1737639044484,-517.02,0.00019315,3]
[350117947,1737639044493,-500.0,0.00019315,3]
[350117948,1737639044502,-500.0,0.00019315,3]
[350117949,1737639044512,-2429.35,0.00019315,3]
[350117950,1737639044523,-197.46485323,0.00019315,3]
[350117951,1737639044535,-500.0,0.00019315,3]
[350117952,1737639044545,-2007.16,0.00019315,3]
[350117953,1737639044554,-4683.25,0.00019315,3]
[350117954,1737639044564,-592.98,0.00019315,3]
[350117955,1737639044574,-564.57,0.00019315,3]
[350117956,1737639044583,-500.0,0.00019315,3]
[350117957,1737639044592,-500.0,0.00019315,3]
[350117958,1737639044601,-833.19,0.00019315,3]
[350117959,1737639044610,-802.59,0.00019315,3]
[350117960,1737639044619,-500.0,0.00019315,3]
[350117961,1737639044629,-500.0,0.00019315,3]
[350117962,1737639044638,-4073.48680509,0.00019315,3]
[350117966,1737639045750,-1069.81653123,0.00019315,3]
[350117967,1737639045763,-5976.64666368,0.00019315,3]
[350117968,1737639045772,-500.0,0.00019315,3]
[350117969,1737639045782,-798.91,0.00019315,3]
[350117970,1737639045792,-2383.17,0.00019315,3]
[350117971,1737639045801,-500.0,0.00019315,3]
[350117972,1737639045813,-500.0,0.00019315,3]
[350117973,1737639045822,-360.0,0.00019315,2]
[350117974,1737639045832,-360.0,0.00019315,2]
[350117975,1737639045842,-500.0,0.00019315,3]
[350117976,1737639045852,-873.27,0.00019315,3]
[350117977,1737639045861,-338.21189226,0.00019315,2]
[350117978,1737639045871,-500.0,0.00019315,3]
[350117979,1737639045880,-589.29,0.00019315,3]
[350117980,1737639045890,-500.0,0.00019315,3]
[350117981,1737639045899,-500.0,0.00019315,3]
[350117982,1737639045908,-1839.47,0.00019315,3]
[350117983,1737639045917,-500.0,0.00019315,3]
[350117984,1737639045927,-500.0,0.00019451,2]
[350117985,1737639045937,-486.24418366,0.00019451,2]
[350117986,1737639045946,-500.0,0.00019452,3]
[350117987,1737639045955,-500.0,0.00019452,3]
[350117988,1737639045965,-500.0,0.00019452,3]
[350117989,1737639045974,-500.0,0.00019452,3]
[350117990,1737639045983,-798.85,0.00019452,2]
[350117991,1737639045993,-500.0,0.00019452,2]
[350117992,1737639046003,-1321.82,0.00019452,3]
[350117993,1737639046013,-517.02,0.00019452,3]
[350117994,1737639046022,-500.0,0.00019452,3]
[350117995,1737639046031,-500.0,0.00019452,3]
[350117996,1737639046041,-2429.35,0.00019452,3]
[350117997,1737639046050,-500.0,0.00019452,3]
[350117998,1737639046060,-151.0,0.00019452,2]
[350117999,1737639046070,-151.0,0.00019452,2]
[350118000,1737639046079,-29.74728007,0.00019452,3]
[350118001,1737639046094,-1977.41271993,0.00019452,3]
[350118002,1737639046103,-4683.25,0.00019452,3]
[350118003,1737639046112,-592.98,0.00019452,3]
[350118004,1737639046121,-564.57,0.00019452,3]
[350118005,1737639046130,-500.0,0.00019452,3]
[350118006,1737639046139,-833.19,0.00019452,3]
[350118007,1737639046149,-802.59,0.00019452,3]
[350118008,1737639046158,-294.20253668,0.00019452,3]
[350118009,1737639046168,-500.0,0.00019452,3]
[350118010,1737639046177,-1390.63423139,0.00019452,3]
[350118022,1737639305217,250.009996,0.00013973,2]
[350118023,1737639443353,4241.0,0.00024,120]
[350118025,1737639964318,1969.58865139,0.00024,120]
[350118030,1737640229946,237.509496,0.00013973,2]
[350118162,1737640236104,-242.68367032,0.00016798,2]
[350118163,1737640236114,-500.0,0.00017664,2]
[350118164,1737640236124,-163.718324,0.00017808,2]
[350118165,1737640236133,-192.770672,0.00017888,2]
[350118166,1737640236142,-268.911,0.0001848,2]
[350118167,1737640236152,-21.36870213,0.00018999,2]
[350118168,1737640236163,-278.63129787,0.00018999,2]
[350118169,1737640236173,-14052.28969775,0.00019,2]
[350118170,1737640236183,-433.43155632,0.00019078,2]
[350118171,1737640236192,-300.0,0.000191,8]
[350118172,1737640236202,-516.60631559,0.00019178,2]
[350118173,1737640236211,-500.0,0.00019178,2]
[350118174,1737640236220,-500.0000008,0.00019178,2]
[350118175,1737640236230,-500.0,0.00019178,2]
[350118176,1737640236239,-647.65015798,0.00019178,2]
[350118177,1737640236248,-548.95000004,0.00019178,2]
[350118178,1737640236258,-501.93033369,0.00019178,2]
[350118179,1737640236272,-212.17547302,0.00019178,2]
[350118180,1737640236281,-508.33,0.00019178,2]
[350118181,1737640236291,-500.0,0.00019178,2]
[350118182,1737640236300,-500.0,0.00019178,2]
[350118183,1737640236310,-500.0,0.00019178,2]
[350118184,1737640236319,-500.0,0.00019178,2]
[350118185,1737640236328,-254.60466115,0.00019178,2]
[350118186,1737640236337,-500.0,0.00019178,2]
[350118188,1737640236347,-500.0,0.00019178,2]
[350118190,1737640236356,-500.0,0.00019178,2]
[350118192,1737640236365,-343.90485804,0.00019178,2]
[350118194,1737640236374,-500.0,0.00019178,2]
[350118196,1737640236383,-500.0,0.00019178,2]
[350118198,1737640236393,-526.89030574,0.00019178,2]
[350118200,1737640236402,-500.0,0.00019178,2]
[350118201,1737640236412,-511.43,0.00019178,2]
[350118202,1737640236421,-294.98,0.00019178,2]
[350118204,1737640236430,-500.0,0.00019178,2]
[350118205,1737640236439,-609.89642439,0.00019178,2]
[350118208,1737640236449,-500.0,0.00019178,2]
[350118210,1737640236458,-698.99,0.00019178,2]
[350118212,1737640236468,-859.3,0.00019178,2]
[350118214,1737640236477,-516.10599631,0.00019178,2]
[350118216,1737640236486,-500.0,0.00019178,2]
[350118218,1737640236495,-1707.01,0.00019178,2]
[350118220,1737640236504,-500.0,0.00019178,2]
[350118222,1737640236520,-500.0,0.00019178,2]
[350118223,1737640236530,-500.0,0.00019178,2]
[350118224,1737640236539,-500.0,0.00019178,2]
[350118225,1737640236548,-500.0,0.00019178,2]
[350118226,1737640236557,-500.0,0.00019178,2]
[350118227,1737640236567,-1177.43,0.00019178,2]
[350118228,1737640236578,-500.0,0.00019178,2]
[350118229,1737640236587,-2125.68,0.00019178,2]
[350118230,1737640236598,-500.0,0.00019178,2]
[350118231,1737640236610,-311.81852643,0.00019178,2]
[350118232,1737640236619,-638.91688075,0.00019178,2]
[350118233,1737640236629,-500.0,0.00019178,2]
[350118234,1737640236640,-1777.1,0.00019178,2]
[350118235,1737640236649,-514.83,0.00019178,2]
[350118236,1737640236658,-500.0,0.00019178,2]
[350118237,1737640236668,-500.0,0.00019178,2]
[350118238,1737640236677,-749.87,0.00019178,2]
[350118239,1737640236687,-539.69,0.00019178,2]
[350118240,1737640236697,-4118.67,0.00019178,2]
[350118241,1737640236707,-10160.17,0.00019178,2]
[350118242,1737640236716,-723.1,0.00019178,2]
[350118243,1737640236726,-500.0,0.00019178,2]
[350118244,1737640236735,-500.0,0.00019178,2]
[350118245,1737640236745,-500.0,0.00019178,2]
[350118246,1737640236755,-500.0,0.00019178,2]
[350118247,1737640236774,-501.59,0.00019178,2]
[350118248,1737640236786,-500.0,0.00019178,2]
[350118249,1737640236795,-497.46182506,0.00019178,2]
[350118250,1737640236805,-500.0,0.00019178,2]
[350118251,1737640236814,-753.17,0.00019178,2]
[350118252,1737640236823,-615.58780601,0.00019178,2]
[350118253,1737640236833,-560.58,0.00019178,2]
[350118254,1737640236842,-2205.41,0.00019178,2]
[350118255,1737640236851,-2842.32,0.00019178,2]
[350118256,1737640236860,-154.97,0.00019178,2]
[350118257,1737640236869,-1206.76,0.000192,2]
[350118258,1737640236879,-361.3731242,0.00019257,2]
[350118259,1737640236888,-500.955,0.0001928,7]
[350118260,1737640236898,-156.5053507,0.00019288,2]
[350118261,1737640236907,-516.67376021,0.00019314,3]
[350118262,1737640236916,-500.0,0.00019314,3]
[350118263,1737640236926,-500.0,0.00019314,3]
[350118264,1737640236935,-500.0,0.00019315,3]
[350118265,1737640236944,-500.0,0.00019315,3]
[350118266,1737640236954,-500.0,0.00019315,3]
[350118267,1737640236963,-500.0,0.00019315,3]
[350118268,1737640236972,-324.0,0.00019315,2]
[350118269,1737640236981,-324.0,0.00019315,2]
[350118270,1737640236991,-500.0,0.00019315,3]
[350118271,1737640237000,-698.99,0.00019315,2]
[350118272,1737640237014,-859.3,0.00019315,3]
[350118273,1737640237023,-500.0,0.00019315,3]
[350118274,1737640237032,-1707.01,0.00019315,3]
[350118275,1737640237041,-632.0432216,0.00019315,3]
[350118276,1737640237051,-500.0,0.00019315,3]
[350118277,1737640237060,-500.0,0.00019315,3]
[350118278,1737640237069,-500.0,0.00019315,2]
[350118279,1737640237078,-1177.43,0.00019315,3]
[350118280,1737640237087,-500.0,0.00019315,3]
[350118281,1737640237096,-2125.68,0.00019315,3]
[350118282,1737640237105,-500.0,0.00019315,3]
[350118283,1737640237114,-151.0,0.00019315,2]
[350118284,1737640237123,-151.0,0.00019315,2]
[350118285,1737640237132,-151.0,0.00019315,2]
[350118286,1737640237141,-151.0,0.00019315,2]
[350118287,1737640237150,-1777.1,0.00019315,3]
[350118288,1737640237160,-514.83,0.00019315,3]
[350118289,1737640237169,-500.0,0.00019315,3]
[350118290,1737640237178,-500.0,0.00019315,3]
[350118291,1737640237187,-749.87,0.00019315,3]
[350118292,1737640237196,-539.69,0.00019315,3]
[350118293,1737640237206,-4118.67,0.00019315,3]
[350118294,1737640237215,-4119.83360636,0.00019315,3]
[350118295,1737640237231,-6040.33639364,0.00019315,3]
[350118296,1737640237240,-723.1,0.00019315,3]
[350118297,1737640237250,-500.0,0.00019315,3]
[350118298,1737640237261,-500.0,0.00019315,3]
[350118299,1737640237271,-500.0,0.00019315,3]
[350118300,1737640237280,-500.0,0.00019315,3]
[350118301,1737640237289,-753.17,0.00019315,3]
[350118302,1737640237299,-560.58,0.00019315,3]
[350118303,1737640237308,-2205.41,0.00019315,3]
[350118304,1737640237318,-2842.32,0.00019315,3]
[350118305,1737640237327,-160.0,0.00019384,2]
[350118306,1737640237336,-161.69,0.00019384,2]
[350118307,1737640237345,-153.0,0.00019384,2]
[350118308,1737640237354,-153.0,0.00019384,2]
[350118309,1737640237364,-153.0,0.00019384,2]
[350118310,1737640237373,-153.0,0.00019384,2]
[350118311,1737640237382,-153.0,0.00019384,2]
[350118312,1737640237391,-153.0,0.00019384,2]
[350118313,1737640237401,-153.0,0.00019384,2]
[350118314,1737640237413,-153.0,0.00019384,2]
[350118315,1737640237422,-153.0,0.00019384,2]
[350118316,1737640237431,-153.0,0.00019384,2]
[350118317,1737640237440,-153.0,0.00019384,2]
[350118318,1737640237450,-153.0,0.00019384,2]
[350118319,1737640237459,-153.0,0.00019384,2]
[350118320,1737640237468,-153.0,0.00019384,2]
[350118321,1737640237477,-153.0,0.00019384,2]
[350118322,1737640237486,-153.0,0.00019384,2]
[350118323,1737640237496,-153.0,0.00019384,2]
[350118324,1737640237505,-153.0,0.00019384,2]
[350118325,1737640237516,-227.0,0.00019384,2]
[350118326,1737640237526,-307.92,0.0001945,3]
[350118327,1737640237536,-215.9637734,0.00019451,2]
[350118329,1737640237545,-500.0,0.00019452,3]
[350118330,1737640237554,-500.0,0.00019452,3]
[350118331,1737640237563,-500.0,0.00019452,3]
[350118332,1737640237573,-404.28730603,0.00019452,3]
[350118335,1737640237684,-324.0,0.00019452,2]
[350118336,1737640237694,-324.0,0.00019452,2]
[350118337,1737640237703,-500.0,0.00019452,3]
[350118338,1737640237712,-698.99,0.00019452,2]
[350118339,1737640237722,-859.3,0.00019452,3]
[350118340,1737640237731,-408.80642203,0.00019452,3]
[350118343,1737640237887,-458.49465,0.0001928,7]
[350118344,1737640237897,-91.19357797,0.00019452,3]
[350118345,1737640237906,-500.0,0.00019452,3]
[350118346,1737640237916,-500.0,0.00019452,3]